[Event "US Masters 2022"]
[Site "Charlotte"]
[Date "2022.11.25"]
[Round "4.16"]
[White "Sargsyan, Anna M."]
[Black "Brodsky, David"]
[Result "1/2-1/2"]
[ECO "B91"]
[WhiteElo "2384"]
[BlackElo "2509"]
[Annotator "TA"]
[PlyCount "48"]
[EventDate "2022.11.23"]
[EventType "swiss"]
[EventCountry "USA"]
[SourceTitle "playchess.com"]
[Source "ChessBase"]
[SourceQuality "1"]
[TimeControl "5400+30"]

{[%evp 11,48,21,16,23,23,0,2,2,51,33,37,28,38,0,59,58,55,71,72,51,64,54,63,68,76,55,70,61,125,122,161,54,39,8,12,20,20,16,14]} 1. e4 {[%emt 0:13:34]} c5 {[%emt 0:00:28]} 2. Nf3 {[%emt 0:00:05][%cal Bg1f3,Bf3d4,Bd4b3,Bb3c5][%mdl 32]} d6 {[%emt 0:00:03]} 3. d4 {[%emt 0:00:07]} cxd4 {[%emt 0:00:05]} 4. Nxd4 {[%emt 0:00:05]} Nf6 {[%emt 0:00:04]} 5. Nc3 {[%emt 0:00:07]} a6 {[%emt 0:00:02]} 6. g3 {[%emt 0:00:31]} e5 {[%emt 0:00:23]} 7. Nb3 {[%emt 0:00:48] B91: Sicilian Najdorf: 6 g3.} Be7 {[%emt 0:00:42]} 8. Bg5 {[%emt 0:00:13]} Be6 {[%emt 0:01:07]} 9. f4 {[%emt 0:00:06] [#]} b5 $146 {[%emt 0:22:50]} (9... exf4 $11 10. Bxf4 Nc6) ({Predecessor:} 9... exf4 10. Bxf4 Nc6 11. Qd2 O-O 12. O-O-O Ne5 13. Nd4 Bd7 14. Kb1 Rc8 15. h3 b5 {0-1 (25) Le,Q (2709)-Vachier Lagrave,M (2784) chess24.com INT 2020}) 10. fxe5 {[%emt 0:05:30]} dxe5 {[%emt 0:00:41]} 11. Qxd8+ {[%emt 0:00:06]} Bxd8 {[%emt 0:06:00]} 12. Nc5 {[%emt 0:01:32]} Bc8 {[%emt 0:07:33]} (12... Nbd7 $11 13. Nxe6 fxe6) 13. a4 {[%emt 0:08:43]} Be7 {[%emt 0:24:06]} 14. Bxf6 {[%emt 0:02:45]} gxf6 {[%emt 0:01:05]} 15. Nb3 {[%emt 0:00:12]} bxa4 {[%emt 0:01:30]} 16. Rxa4 {[%emt 0:00:06]} f5 {[%emt 0:05:10]} 17. Nd5 {[%emt 0:07:49] [#] Nc7+ is the strong threat.} Bd8 {[%emt 0:01:27] Against Nc7+} 18. Nc5 {[%emt 0:05:48]} fxe4 {[%emt 0:04:02]} 19. Nxe4 {[%emt 0:03:22] Hoping for Nd6+. Pair of Knights!} Be6 {[%emt 0:02:51]} ({Black should try} 19... Kf8 $14) 20. Bc4 $16 {[%emt 0:02:56] White is much more active.} Nd7 {[%emt 0:02:28]} 21. O-O {[%emt 0:04:21]} (21. Rxa6 $2 {loses.} Rxa6 22. Bxa6 Bxd5 $19) (21. Nd6+ $18 Kf8 22. O-O (22. Rxa6 $2 {perishes.} Rxa6 23. Bxa6 Bxd5 $19)) 21... O-O $14 {[%emt 0:03:10]} 22. Ndf6+ {[%emt 0:13:09]} (22. Rxa6 $2 {too greedy.} Bxd5 23. Rxa8 Bb6+ 24. Nf2 Bxa8 $19) 22... Nxf6 {[%emt 0:00:14] The position is equal.} 23. Nxf6+ {[%emt 0:00:05]} Bxf6 {[%emt 0:00:08]} 24. Rxf6 {[%emt 0:00:04]} Kg7 {[%emt 0:00:10] Weighted Error Value: White=0.18 (very precise) /Black=0.17 (very precise)} 1/2-1/2

[Event "US Masters 2022"]
[Site "Charlotte"]
[Date "2022.11.25"]
[Round "4.17"]
[White "Budisavljevic, Luka"]
[Black "Ippolito, Dean"]
[Result "1-0"]
[ECO "E97"]
[WhiteElo "2505"]
[BlackElo "2368"]
[Annotator "TA"]
[PlyCount "77"]
[EventDate "2022.11.23"]
[EventType "swiss"]
[EventCountry "USA"]
[SourceTitle "playchess.com"]
[Source "ChessBase"]
[SourceQuality "1"]
[TimeControl "5400+30"]

{[%evp 20,77,45,25,48,17,37,8,15,0,16,18,0,0,0,-9,10,0,0,0,0,0,19,18,39,31,35,39,39,52,51,0,0,0,14,0,91,63,72,97,264,272,1004,954,902,854,880,841,808,638,1026,1041,1052,1069,1041,986,29987,29988,29991,29992]} 1. d4 {[%emt 0:08:11]} Nf6 {[%emt 0:00:06]} 2. Nf3 {[%emt 0:00:24]} g6 {[%emt 0:00:17]} 3. c4 {[%emt 0:00:05]} Bg7 {[%emt 0:00:05]} 4. Nc3 {[%emt 0:00:09]} O-O {[%emt 0:00:14]} 5. e4 {[%emt 0:00:17]} d6 {[%emt 0:00:07]} 6. Be2 {[%emt 0:00:08]} e5 {[%emt 0:00:25]} 7. O-O {[%emt 0:00:13]} Nc6 {[%emt 0:00:22]} 8. d5 {[%emt 1:25:03]} Ne7 {[%emt 0:00:04]} 9. b4 {[%emt 0:00:00]} a5 {[%emt 1:33:20]} 10. bxa5 {[%emt 0:00:00]} Rxa5 {[%emt 0:00:00]} 11. a4 {[%emt 0:00:00]} Ra8 {[%emt 0:00:00] E97: King's Indian: Classical Main Line (6...e5 7 0-0 Nc6): 8 Be3 and 8 d5 Ne7, not 9 Ne1.} 12. Ba3 {[%emt 0:00:00] 12.c5 is the modern continuation.} b6 {[%emt 0:00:00]} 13. Nd2 {[%emt 0:00:00]} Ne8 {[%emt 0:00:00] The position is equal.} 14. Nb3 {[%emt 0:00:00]} f5 {[%emt 0:00:00] [#]} 15. f3 $146 {[%emt 0:00:00]} ({Predecessor:} 15. a5 bxa5 16. c5 fxe4 17. Nxe4 Nf5 18. Bb2 Nf6 19. Nxf6+ Qxf6 20. cxd6 cxd6 21. Rxa5 {½-½ (33) Wojtaszek,R (2728)-Amin,B (2685) Germany 2021}) 15... Bh6 {[%emt 0:00:00]} 16. Qd3 {[%emt 0:00:00]} Bd7 {[%emt 0:00:00]} 17. Bb4 {[%emt 0:00:00][%cal Ba3b4,Bb4e1,Be1g3,Bg3b8][%mdl 32]} Kh8 {[%emt 0:00:00]} 18. Nb5 {[%emt 0:00:00]} fxe4 {[%emt 0:00:00]} 19. fxe4 {[%emt 0:00:00]} Rxf1+ {[%emt 0:00:00]} 20. Kxf1 {[%emt 0:00:00]} Nf6 {[%emt 0:00:00]} 21. a5 {[%emt 0:00:00]} c5 {[%emt 0:00:00]} 22. Be1 {[%emt 0:00:00]} Qf8 {[%emt 0:00:00]} 23. Kg1 {[%emt 0:00:00]} bxa5 $1 {[%emt 0:00:00]} 24. Nxd6 {[%emt 0:00:00] And now Nb7 would win.} Nexd5 {[%emt 0:00:00]} 25. exd5 {[%emt 0:00:00] aiming for Nb7.} (25. Rxa5 $2 Rxa5 26. Bxa5 Nf4 $19) 25... Qxd6 {[%emt 0:00:00]} 26. Rxa5 {[%emt 0:00:00]} Rb8 {[%emt 0:00:00]} 27. Bg3 {[%emt 0:00:00]} Bg7 {[%emt 0:00:00]} (27... Kg8 $11 {keeps the balance.}) 28. Nd2 {[%emt 0:00:00] White is more active.} ({Inferior is} 28. Nxc5 Qb6 29. Be1 Bf8 $17) 28... Qb6 {[%emt 0:00:00]} 29. Qc3 {[%emt 0:00:00]} (29. Bxe5 $2 {perishes.} Qxa5 30. Bxb8 Bf5 $19) 29... e4 {[%emt 0:00:00] Loses the game.} 30. Bxb8 $18 {[%emt 0:00:00]} Ng4 {[%emt 0:00:00] [#] Against Be5} (30... Qxb8 31. Qg3 (31. Rxc5 $2 {loses.} Ng4 $19) 31... Qb2 32. Ra8+ Ne8) 31. Ra8 $1 {[%emt 0:03:11] Threatening mate with Be5+.} Bc8 {[%emt 0:00:00]} 32. Qb3 {[%emt 0:01:22]} Bd4+ {[%emt 0:00:00]} 33. Kf1 {[%emt 0:00:08]} Qf6+ {[%emt 0:00:00] [#]} 34. Bf3 $1 {[%emt 0:01:56]} Ne3+ {[%emt 0:00:00]} (34... exf3 35. Qxf3) 35. Ke2 {[%emt 0:01:19]} exf3+ {[%emt 0:00:00]} 36. Nxf3 {[%emt 0:00:17][%cal Ob8e5] Be5! is the strong threat.} Kg7 {[%emt 0:00:00] [#]} 37. Qxe3 $1 {[%emt 0:00:34]} Bg4 {[%emt 0:00:00]} (37... Bxe3 38. Be5) 38. Ra7+ {[%emt 0:00:39]} Kf8 {[%emt 0:00:00]} 39. Qh6+ {[%emt 0:00:47] Weighted Error Value: White=0.26 (precise) /Black=0.40} 1-0

[Event "US Masters 2022"]
[Site "Charlotte"]
[Date "2022.11.25"]
[Round "4.18"]
[White "Perrine, Dalton"]
[Black "Kavutskiy, Konstantin"]
[Result "0-1"]
[ECO "E70"]
[WhiteElo "2253"]
[BlackElo "2383"]
[Annotator "TA"]
[PlyCount "65"]
[EventDate "2022.11.23"]
[EventType "swiss"]
[EventCountry "USA"]
[SourceTitle "playchess.com"]
[Source "ChessBase"]
[SourceQuality "1"]
[TimeControl "5400+30"]

{[%evp 9,65,29,53,53,52,38,52,39,48,54,83,66,76,74,76,62,85,23,53,-6,-3,-10,29,0,0,-16,-13,-7,-14,-62,-54,-70,-82,-85,-85,-81,-91,-57,-45,-88,-48,-214,-196,-479,-423,-589,-450,-438,-378,-339,-344,-29985,-414,-1197,-1085,-1785,-1681,-1066]} 1. d4 {[%emt 0:05:36]} Nf6 {[%emt 0:06:27]} 2. c4 {[%emt 0:00:40]} g6 {[%emt 0:00:06]} 3. Nc3 {[%emt 0:00:12]} Bg7 {[%emt 0:00:07]} 4. e4 {[%emt 0:00:11]} d6 {[%emt 0:00:05]} 5. Nge2 {[%emt 0:00:32]} h5 {[%emt 0:05:37]} 6. Bg5 {[%emt 0:02:40] [#] E70: King's Indian: Miscellaneous lines with 4 e4, including 5 Nge2 and 5 Bd3 0-0 6 Nge2.} a6 $146 {[%emt 0:04:40][%cal Ob7b5]} ({Predecessor:} 6... O-O 7. Qd2 c5 8. d5 a6 9. a4 Qa5 10. Ra3 e6 11. Nc1 exd5 12. cxd5 Re8 13. f3 {½-½ (32) Romero Holmes,A (2451)-Arribas Lopez,A (2559) Linares 2015}) 7. f3 {[%emt 0:19:13] Against b5} O-O {[%emt 0:04:29]} 8. Qd2 {[%emt 0:02:02] White is slightly better.} Nh7 {[%emt 0:06:05]} 9. Be3 {[%emt 0:12:59]} b6 {[%emt 0:04:26]} 10. d5 {[%emt 0:06:12]} c5 {[%emt 0:06:27][%cal Ob6b5]} 11. dxc6 {[%emt 0:45:43]} Nxc6 {[%emt 0:00:16]} 12. Nf4 {[%emt 0:00:00][%cal Of4g6]} Bd7 {[%emt 0:02:30]} 13. Nfd5 {[%emt 0:00:00]} (13. Be2 $16) 13... Rb8 $11 {[%emt 0:01:54]} 14. Qf2 {[%emt 0:00:00]} (14. Rd1 $14) 14... b5 $1 {[%emt 0:03:20]} 15. Bb6 {[%emt 0:00:00] Prevents Qa5.} (15. cxb5 axb5 16. Bxb5 Ne5 $14) 15... Qe8 {[%emt 0:14:51]} 16. cxb5 {[%emt 0:00:00]} axb5 {[%emt 0:00:06]} 17. Nxb5 {[%emt 0:00:00] Black must now prevent Nbc7.} f5 $1 {[%emt 0:02:26]} 18. Bc4 {[%emt 0:00:00]} Kh8 $1 {[%emt 0:02:41]} 19. exf5 {[%emt 0:00:00]} (19. O-O $11) 19... Rxf5 $15 {[%emt 0:02:39] And now ...Ne5 would win.} 20. O-O {[%emt 0:00:00]} Ne5 $1 {[%emt 0:01:38][%csl LRb5,LRc4][%mdl 1024] Black has compensation.} 21. Nbc7 {[%emt 0:01:42]} Qf7 {[%emt 0:02:59]} 22. Bb3 {[%emt 0:01:02] Hoping for Ne3.} e6 $1 {[%emt 0:00:25]} 23. Ne3 {[%emt 0:01:14]} Rf4 {[%emt 0:02:24]} 24. Ba5 {[%emt 0:00:28]} Ng5 {[%emt 0:04:50]} 25. Qe2 {[%emt 0:01:07] [#] This move loses the game for White.} (25. Qg3 $15 Ngxf3+ 26. gxf3) 25... Bc6 $1 $19 {[%emt 0:03:06][%cal Re5f3] ...Nexf3+! is the strong threat.} 26. Rac1 $2 {[%emt 0:01:15] [#]} (26. Kh1) 26... Nexf3+ $1 {[%emt 0:03:17][%mdl 576]} 27. gxf3 {[%emt 0:00:39]} (27. Kh1 Nd4) 27... Nxf3+ {[%emt 0:00:30]} 28. Rxf3 {[%emt 0:00:17]} Bxf3 {[%emt 0:00:19]} 29. Qe1 {[%emt 0:00:37]} Bd4 {[%emt 0:01:21]} (29... Bxb2 30. Nxe6 (30. Bxe6 Qf6 $15) 30... Re4 31. Bc3+ Bxc3 32. Qxc3+ Re5 33. Rf1 $18) 30. h3 {[%emt 0:00:20] Against Rg4+} (30. Bc3 $19 Rg4+ 31. Kf1 Rxb3 32. axb3 (32. Bxd4+ $2 Rxd4 33. axb3 Bb7+ 34. Kg1 Qf3 $19) 32... Be4+ 33. Qf2) 30... Qf6 {[%emt 0:07:25]} (30... Bxb2 $2 31. Nxe6 (31. Bxe6 $2 {is the wrong capture.} Qe7 $19) 31... Qf6 32. Nxf4 Qxf4 33. Bc3+ Bxc3 34. Qxc3+ $18) (30... Qf5 $142 31. Kh2 Qe5 32. Ng2 Re4+ 33. Qg3 Re2 34. Qxe5+ Bxe5+ 35. Kg1 Rxg2+ 36. Kf1 Bd4 37. Ke1 {[#]} Rxb3 $1 {[%mdl 512]} 38. Nd5 Re3+ 39. Nxe3 Bxe3 40. Rc8+ Kh7 41. Rh8+ Kxh8 42. Bc3+ Kh7 43. h4 Rg1#) 31. Nxe6 {[%emt 0:00:26] [#]} (31. Bc3 $142 e5 32. Ncd5 Qg5+ 33. Kh2 Bxd5 34. Bxd5) 31... Rxb3 $1 {[%emt 0:00:52][%mdl 576]} 32. Nxd4 {[%emt 0:00:49]} (32. axb3 Qxe6) 32... Qg5+ {[%emt 0:02:24]} (32... Rxb2 33. Nxf3 Qe7 34. Rc8+ Kh7 35. Bc3 g5 36. Bxb2 Re4 37. Rh8+ Kg6 38. Qb1) 33. Kh2 {[%emt 0:01:04] Weighted Error Value: White=0.98/Black=0.27 (precise)} 0-1

[Event "US Masters 2022"]
[Site "Charlotte"]
[Date "2022.11.25"]
[Round "4.19"]
[White "Beradze, Irakli"]
[Black "Oberoi, Shelev"]
[Result "1-0"]
[ECO "D02"]
[WhiteElo "2494"]
[BlackElo "2328"]
[Annotator "TA"]
[PlyCount "41"]
[EventDate "2022.11.23"]
[EventType "swiss"]
[EventCountry "USA"]
[SourceTitle "playchess.com"]
[Source "ChessBase"]
[SourceQuality "1"]
[TimeControl "5400+30"]

{[%evp 9,41,6,18,8,14,-4,52,48,64,72,92,82,87,77,89,77,77,77,69,62,81,60,73,80,93,85,85,82,71,47,147,116,756,693]} 1. Nf3 {[%emt 0:06:37] Kostakiev,D} d5 {[%emt 0:00:12]} 2. g3 {[%emt 0:00:05]} Nc6 {[%emt 0:00:27]} 3. d4 {[%emt 0:00:27]} Bf5 {[%emt 0:00:10]} 4. Nh4 {[%emt 0:02:11]} Be4 {[%emt 0:05:21]} 5. f3 {[%emt 0:00:27]} Bg6 {[%emt 0:00:02] [#]} 6. c4 $146 {[%emt 0:07:41] D02: 1 d4 d5 2 Nf3 sidelines, including 2...Nf6 3 g3 and 2...Nf6 3 Bf4.} ({Predecessor:} 6. Nxg6 hxg6 7. Bg2 Qd6 8. f4 O-O-O 9. c3 g5 10. Qd3 Kb8 11. fxg5 e5 12. O-O e4 13. Rxf7 exd3 {0-1 (13) Karpov,A (2735)-Sadler,M (2650) Monte Carlo 1998 CBM 063 Extra [Kostakiev,D]}) 6... e6 {[%emt 0:08:11]} ({Much less strong is} 6... dxc4 7. d5 Nb8 8. e4 $16) 7. Nc3 {[%emt 0:02:07]} Bb4 {[%emt 0:01:53]} (7... Qd7 $11) 8. a3 {[%emt 0:06:32] White is slightly better.} Bxc3+ {[%emt 0:02:52]} 9. bxc3 {[%emt 0:00:19]} Na5 {[%emt 0:02:04]} 10. cxd5 {[%emt 0:01:33]} exd5 {[%emt 0:00:31]} 11. e4 {[%emt 0:01:53]} Qd7 {[%emt 0:12:45]} 12. Bg2 {[%emt 0:02:13][%cal Bf1g2,Bg2h3,Bh3d7,Bd7g4,Bg4c8][%mdl 32]} O-O-O {[%emt 0:07:43]} 13. O-O {[%emt 0:00:38]} Ne7 {[%emt 0:02:05]} 14. Rb1 {[%emt 0:00:56]} Kb8 {[%emt 0:06:04]} 15. Qe2 {[%emt 0:02:52]} (15. Qd3 {simplifies} Ka8 16. a4 Qxa4 17. Bf4) 15... c6 {[%emt 0:04:36]} 16. Qa6 {[%emt 0:08:32] White is more active.} Nc4 {[%emt 0:03:15] [#]} 17. Bh3 $1 $36 {[%emt 0:00:08][%mdl 2048] Black is under strong pressure.} Ka8 {[%emt 0:02:26]} 18. Bxd7 {[%emt 0:02:56][%csl Gb1][%cal Ra6b7] Really sharp!} bxa6 {[%emt 0:00:17]} 19. Bg4 {[%emt 0:00:03]} (19. Bh3 $5 {[%cal Rf1e1]}) 19... Nd6 {[%emt 0:08:50]} ({Black should play} 19... Nc8 $14) 20. Bf4 {[%emt 0:01:39]} Nec8 $2 {[%emt 0:07:08][%mdl 8192] [#]} (20... Nc4 $16) 21. Bxc8 {[%emt 0:00:21] Weighted Error Value: White=0.07 (flawless) /Black=0.28 (precise)} 1-0

[Event "US Masters 2022"]
[Site "Charlotte"]
[Date "2022.11.25"]
[Round "4.20"]
[White "Bacus, Dharim"]
[Black "Grinberg, Eyal"]
[Result "0-1"]
[ECO "B94"]
[WhiteElo "2146"]
[BlackElo "2491"]
[Annotator "TA"]
[PlyCount "64"]
[EventDate "2022.11.23"]
[EventType "swiss"]
[EventCountry "USA"]
[SourceTitle "playchess.com"]
[Source "ChessBase"]
[SourceQuality "1"]
[TimeControl "5400+30"]

{[%evp 11,64,7,34,26,25,25,42,10,13,7,6,0,7,0,9,7,22,9,16,0,0,-10,0,-14,0,-59,-62,-141,-150,-126,-27,-101,-64,-516,-514,-505,-480,-575,-460,-474,-473,-439,-464,-448,-420,-365,-377,-586,-577,-803,-795,-1197,-1177,-1261,-1133]} 1. e4 {[%emt 0:00:30]} c5 {[%emt 0:10:59]} 2. Nf3 {[%emt 0:00:25]} d6 {[%emt 0:00:04]} 3. d4 {[%emt 0:00:32]} cxd4 {[%emt 0:00:05]} 4. Nxd4 {[%emt 0:00:05]} Nf6 {[%emt 0:00:05]} 5. Nc3 {[%emt 0:00:07]} a6 {[%emt 0:00:04]} 6. Bg5 {[%emt 0:00:19][%cal Bc1g5,Bg5h4,Bh4f2,Bf2e3][%mdl 32]} Nbd7 {[%emt 0:00:05]} 7. Qe2 {[%emt 0:00:54] 7.Qe2 is the recent fashion. B94: Sicilian Najdorf: 6 Bg5 Nbd7.} h6 {[%emt 0:00:09]} 8. Bh4 {[%emt 0:01:56]} g6 {[%emt 0:00:05]} 9. O-O-O {[%emt 0:01:31] White is slightly better.} (9. f4 $5) 9... e5 {[%emt 0:00:06] Inhibits f4.} 10. Nb3 {[%emt 0:01:53][%cal Of2f4]} Be7 {[%emt 0:02:46]} 11. f3 {[%emt 0:07:59]} b5 {[%emt 0:02:55]} 12. Bf2 {[%emt 0:23:19]} Bb7 {[%emt 0:02:26]} 13. a3 {[%emt 0:00:38]} Rc8 {[%emt 0:00:06][%cal Oc8c3] Hoping for ...Rxc3!} 14. Qd2 {[%emt 0:03:36]} Qc7 {[%emt 0:11:58][%cal Od6d5]} 15. Kb1 {[%emt 0:01:24] [#]} h5 $146 {[%emt 0:05:03]} ({Predecessor:} 15... Kf8 16. g4 Kg7 17. h4 Nb6 18. Na5 Ba8 19. Bh3 Rb8 20. g5 Nh5 21. gxh6+ Rxh6 {½-½ (44) Georgiadis,I (2434)-Papaioannou,I (2597) Achaia 2012}) 16. Be3 {[%emt 0:01:45]} O-O {[%emt 0:05:22]} 17. h4 {[%emt 0:00:18][%cal Og2g4]} Rfd8 {[%emt 0:02:18][%cal Od6d5]} 18. g4 {[%emt 0:01:50] Against d5} (18. Qf2 $11) 18... d5 $1 $15 {[%emt 0:06:03] Threatens to win with ...d4.} 19. Nxd5 {[%emt 0:09:05]} (19. g5 $1 $15 d4 20. gxf6 dxc3 21. Qxc3 Qxc3 22. bxc3 Nxf6 23. Rxd8+ Rxd8 24. Kb2) 19... Nxd5 $17 {[%emt 0:02:22]} (19... Bxd5 20. exd5 Nxd5 21. Bd3 $11 (21. Qxd5 $2 Nf6 $19)) 20. exd5 {[%emt 0:00:05] [#]} Nf6 {[%emt 0:09:13]} (20... Bxd5 $1 $17 {[%mdl 512]} 21. Bg2 (21. Qxd5 $2 Nf6 $19) 21... hxg4 22. fxg4 Nf6) 21. Qf2 {[%emt 0:04:21]} (21. Bd3 $1 $11 {keeps the balance.}) 21... Rxd5 {[%emt 0:05:15] Black is more active.} 22. Bh3 $2 {[%emt 0:13:13][%mdl 8192] This move loses the game for White.} ({White should try} 22. Rc1 $1 $15) 22... Rxd1+ $19 {[%emt 0:03:04]} 23. Rxd1 {[%emt 0:00:05] [#] Bb6 is the strong threat.} Bxf3 $1 {[%emt 0:02:30][%mdl 512]} 24. Bb6 {[%emt 0:17:19]} (24. Qxf3 $2 Qxc2+ 25. Ka2 Rc3) (24. gxh5 Bxd1) 24... Qc6 {[%emt 0:07:26]} ({Worse is} 24... Bxd1 25. Bxc7 Rxc7 26. gxh5 $11) 25. Na5 {[%emt 0:02:56]} Qa8 {[%emt 0:00:50]} 26. g5 {[%emt 0:03:05]} Ng4 {[%emt 0:05:07]} (26... Bxd1 $2 {perishes.} 27. Bxc8 Qxc8 28. gxf6 $19) 27. Bxg4 {[%emt 0:00:20]} Bxg4 {[%emt 0:00:23]} (27... hxg4 $2 {loses.} 28. Rd2 $19) 28. Rc1 {[%emt 0:01:11]} Bf5 {[%emt 0:01:46]} 29. Nb3 {[%emt 0:00:40]} (29. b4 $142) 29... Qd5 {[%emt 0:00:20] Black is clearly winning.} 30. Nd2 {[%emt 0:00:58]} b4 {[%emt 0:01:12]} 31. axb4 {[%emt 0:00:22]} Bxb4 {[%emt 0:00:14] A strong pair of Bishops.} 32. Nf1 {[%emt 0:00:01] [#]} Rxc2 $1 {[%emt 0:06:06][%mdl 512] Weighted Error Value: White=0.82/Black=0.15 (very precise)} 0-1

[Event "US Masters 2022"]
[Site "Charlotte"]
[Date "2022.11.25"]
[Round "4.21"]
[White "Liang, Awonder"]
[Black "Zapata, Alonso"]
[Result "1-0"]
[ECO "B47"]
[WhiteElo "2630"]
[BlackElo "2336"]
[Annotator "TA"]
[PlyCount "65"]
[EventDate "2022.11.23"]
[EventType "swiss"]
[EventCountry "USA"]
[SourceTitle "playchess.com"]
[Source "ChessBase"]
[SourceQuality "1"]
[TimeControl "5400+30"]

{[%evp 11,65,12,26,21,31,35,33,26,36,-5,35,27,26,20,24,16,41,26,19,21,45,26,89,95,92,71,71,56,114,118,202,217,195,162,352,345,497,478,667,481,461,457,439,408,349,343,372,360,1088,1036,2070,2081,29994,29995,29995,29996]} 1. e4 {[%emt 1:31:00]} c5 {[%emt 0:05:23]} 2. Nf3 {[%emt 0:00:00]} e6 {[%emt 0:00:04]} 3. d4 {[%emt 0:00:00]} cxd4 {[%emt 0:00:05]} 4. Nxd4 {[%emt 0:00:00]} Nc6 {[%emt 0:00:16]} 5. Nc3 {[%emt 0:00:00]} Qc7 {[%emt 0:00:16]} 6. Be2 {[%emt 0:00:00]} a6 {[%emt 0:00:10]} 7. Nxc6 {[%emt 0:00:00] B47: Sicilian: Taimanov: 5 Nc3 Qc7 6 f4, 6 g3 and 6 Be2.} dxc6 {[%emt 0:00:27]} 8. O-O {[%emt 0:00:00]} e5 {[%emt 0:02:10]} 9. Qd3 {[%emt 0:00:00] White is slightly better.} Nf6 {[%emt 0:02:26]} 10. f4 {[%emt 0:00:00] [#]} Bd6 $146 {[%emt 0:03:40][%cal Re5f4]} ({Predecessor:} 10... Be6 11. Kh1 h5 12. fxe5 Ng4 13. Bf4 Rd8 14. Qf3 Nxe5 15. Qg3 h4 16. Qf2 Bd6 {1-0 (76) Sarana,A (2649)-Pichot,A (2630) Chess.com INT 2021}) 11. Qg3 {[%emt 0:00:00]} O-O {[%emt 0:15:15]} 12. f5 {[%emt 0:00:00] Threatens to win with Bh6.} Rd8 {[%emt 0:01:57]} 13. a4 {[%emt 0:06:00]} b6 {[%emt 0:09:22]} 14. Qf3 {[%emt 0:00:00]} Bc5+ {[%emt 0:18:35]} 15. Kh1 {[%emt 0:00:00]} Bb4 {[%emt 0:03:07]} 16. Bg5 {[%emt 0:00:00]} Bb7 {[%emt 0:00:51]} (16... Be7 $11 {keeps the balance.}) 17. Bxf6 $16 {[%emt 0:00:00]} gxf6 {[%emt 0:00:08]} 18. Nd1 {[%emt 0:00:00][%cal Bc3d1,Bd1e3,Be3g4,Bg4h6,Bh6g4][%mdl 32]} Kh8 {[%emt 0:06:06]} 19. Ne3 {[%emt 0:00:00]} b5 {[%emt 0:05:23]} ({Better is} 19... Bd2 $1 $14) 20. Qh5 {[%emt 0:00:00]} Bd2 {[%emt 0:09:55]} (20... Rg8 $16) 21. Ng4 $18 {[%emt 0:00:00]} Qe7 {[%emt 0:00:26]} 22. Rad1 {[%emt 0:00:00] aiming for Rf3.} Rd6 $2 {[%emt 0:03:04]} (22... Bg5) 23. Bd3 {[%emt 0:00:00]} Ba5 {[%emt 0:06:54]} (23... c5 {was called for.} 24. Rxd2 c4) 24. Nh6 {[%emt 0:00:00] Black must now prevent Rf3.} Rd7 {[%emt 0:00:23]} 25. Be2 {[%emt 0:00:00] Strongly threatening Rxd7.} Bd2 {[%emt 0:03:00] [#]} 26. Rf3 $1 {[%emt 0:00:00][%cal Bf1f3,Bf3d3,Bd3d7][%mdl 32]} Bf4 {[%emt 0:03:36]} (26... c5 {[#]} 27. Rxd2 $1 {[%mdl 512]} Rxd2 28. Nxf7+ Kg8 29. Rg3+ Kf8 30. Qh6+ Ke8 31. Qxd2) 27. Rxd7 {[%emt 0:00:00]} Qxd7 {[%emt 0:00:02]} 28. Rd3 {[%emt 0:00:00] Against Qd2} (28. Nxf7+ Kg8 $16) (28. Qxf7 Qxf7 29. Nxf7+ Kg8 $16) 28... Qe7 {[%emt 0:00:45]} 29. Ng4 {[%emt 0:03:32][%cal Od3d7] Hoping for Rd7!} (29. Qxf7 Qxf7 30. Nxf7+ Kg8 $18) (29. Nxf7+ Kg8 30. Rh3 Qxf7 $18) 29... Rg8 $2 {[%emt 0:00:05] [#]} (29... Kg7 30. g3 (30. Rh3 h6 $11) 30... Qb4) 30. Rd7 $3 {[%emt 0:00:26][%mdl 512]} Qb4 {[%emt 0:00:11]} (30... Rg5 31. Rxe7) 31. c3 {[%emt 0:00:16]} (31. Rxb7 $2 Qe1+) 31... Qxe4 {[%emt 0:00:01]} 32. Qxf7 {[%emt 0:00:17][%csl Gd7][%cal Rf7h7]} (32. Nxf6 $2 Qxg2#) ({Not} 32. Qxh7+ Kxh7 33. Nxf6+ (33. Rxf7+ $2 {perishes.} Kh8 $19) 33... Kg7 34. Nxe4 Bc8 $14) 32... Qb1+ {[%emt 0:01:28]} 33. Bd1 {[%emt 0:00:05] Weighted Error Value: White=0.13 (very precise) /Black=0.63} 1-0